[Event "WSTCC-65 2024"]
[Site "Krakow"]
[Date "2024.07.03"]
[Round "2.14"]
[White "Rooze, Jan"]
[Black "Plachetka, Jan"]
[Result "1/2-1/2"]
[ECO "C50"]
[WhiteElo "2222"]
[BlackElo "2289"]
[Annotator "TA"]
[PlyCount "37"]
[EventDate "2024.07.01"]
[EventType "team-tourn"]
[EventCountry "POL"]
[SourceTitle "playchess.com"]
[Source "ChessBase"]
[SourceQuality "1"]
[TimeControl "40/5400+30:1800+30"]

{[%evp 13,37,14,20,8,29,17,8,9,40,8,28,29,32,16,25,0,7,8,22,3,6,0,0,6,9,3]} 1. e4 {[%emt 0:00:05]} e5 {[%emt 0:00:41]} 2. Nf3 {[%emt 0:00:07]} Nc6 {[%emt 0:00:07]} 3. Bc4 {[%emt 0:00:05]} Bc5 {[%emt 0:00:36]} 4. O-O {[%emt 0:00:28]} d6 {[%emt 0:00:42]} 5. a4 {[%emt 0:01:47]} a6 {[%emt 0:01:57]} 6. c3 {[%emt 0:03:55]} Nf6 {[%emt 0:00:52]} 7. d3 {[%emt 0:00:29]} O-O {[%emt 0:02:22]} 8. Bg5 {[%emt 0:12:27][%cal Bc1g5,Bg5h4,Bh4g3][%mdl 32]} Ba7 {[%emt 0:05:55]} 9. Nbd2 {[%emt 0:02:06]} h6 {[%emt 0:01:54]} 10. Bh4 {[%emt 0:04:42]} Qe7 {[%emt 0:16:19]} 11. Ba2 {[%emt 0:07:06]} g5 {[%emt 0:13:54]} 12. Bg3 {[%emt 0:04:42]} Be6 {[%emt 0:03:03]} 13. Nc4 {[%emt 0:02:46]} Ne8 {[%emt 0:07:35]} 14. Ne3 {[%emt 0:01:03]} Bxe3 {[%emt 0:00:37] Die Stellung ist ausgeglichen.} 15. fxe3 {[%emt 0:00:14]} Ng7 {[%emt 0:01:05]} 16. Bf2 {[%emt 0:12:34]} Bxa2 {[%emt 0:00:54]} 17. Rxa2 {[%emt 0:00:07]} Qe6 {[%emt 0:00:54]} 18. b3 {[%emt 0:01:29]} f5 {[%emt 0:01:33]} 19. exf5 {[%emt 0:01:57] Ein ziemlich ruhiges Remis.   Gewichteter Fehlerwert: Weiß=0.12 (sehr präzise) /Schwarz=0.10 (sehr präzise) .  Ungenau:       	Weiß=1     	Schwarz=1     OK:         	Weiß=3     	Schwarz=3} 1/2-1/2

[Event "WSTCC-65 2024"]
[Site "Krakow"]
[Date "2024.07.03"]
[Round "2.14"]
[White "Orton, Stephen L A"]
[Black "Hentunen, Asko"]
[Result "1/2-1/2"]
[ECO "B35"]
[WhiteElo "2115"]
[BlackElo "2207"]
[Annotator "TA"]
[PlyCount "76"]
[EventDate "2024.07.01"]
[EventType "team-tourn"]
[EventCountry "POL"]
[SourceTitle "playchess.com"]
[Source "ChessBase"]
[SourceQuality "1"]
[TimeControl "40/5400+30:1800+30"]

{[%evp 18,76,43,-1,64,65,62,42,48,30,20,15,23,-10,-16,-22,0,-60,0,0,0,0,22,14,54,0,12,20,43,24,37,25,39,8,14,21,27,23,14,13,35,0,0,0,37,11,11,1,6,3,3,0,0,2,8,8,10,0,0,0,16]} 1. e4 {[%emt 0:00:08]} c5 {[%emt 0:00:05]} 2. Nf3 {[%emt 0:00:06]} g6 {[%emt 0:00:07]} 3. d4 {[%emt 0:00:15]} cxd4 {[%emt 0:00:05]} 4. Nxd4 {[%emt 0:00:19]} Bg7 {[%emt 0:00:04]} 5. Nc3 {[%emt 0:01:02]} Nc6 {[%emt 0:00:11]} 6. Be3 {[%emt 0:00:05]} Nf6 {[%emt 0:00:27]} 7. Bc4 {[%emt 0:00:23]} O-O {[%emt 0:00:49]} 8. Bb3 {[%emt 0:00:34]} Ng4 {[%emt 0:00:47]} 9. Qxg4 {[%emt 0:03:20]} Nxd4 {[%emt 0:00:33]} 10. Qh4 {[%emt 0:04:13]} Nc6 {[%emt 0:09:19]} (10... b5 $11) 11. O-O {[%emt 0:03:34] Weiß steht deutlich aktiver.} d6 {[%emt 0:00:17]} 12. Bh6 {[%emt 0:04:13]} Be6 {[%emt 0:10:43] Weiß steht etwas besser.} 13. Nd5 {[%emt 0:12:00]} Bxh6 {[%emt 0:15:47]} 14. Qxh6 {[%emt 0:00:30]} Bxd5 {[%emt 0:00:06]} 15. Bxd5 {[%emt 0:01:34]} Qb6 {[%emt 0:03:27]} 16. Rad1 {[%emt 0:09:57]} Ne5 {[%emt 0:05:31][%cal Oa7a5] Verhindert Rd3.} 17. h4 {[%emt 0:10:16]} ({Besser ist} 17. Bb3 $11) 17... e6 {[%emt 0:10:47]} (17... a5 $15 18. a4 Qxb2) 18. Bb3 $11 {[%emt 0:00:17]} a5 {[%emt 0:08:45] [#] Droht ...a4 und aus.} 19. a4 $1 {[%emt 0:00:26]} Qd8 {[%emt 0:02:27]} 20. Qg5 {[%emt 0:06:18]} Ra6 {[%emt 0:06:33]} 21. Rd4 {[%emt 0:03:50]} (21. f4 $14 Nd7 22. Bc4) 21... Qxg5 {[%emt 0:01:08]} 22. hxg5 {[%emt 0:00:08]} Rc8 {[%emt 0:00:42]} 23. Rfd1 {[%emt 0:04:36]} Rcc6 {[%emt 0:01:23]} 24. f4 {[%emt 0:07:35]} Ng4 {[%emt 0:03:04]} 25. R4d3 {[%emt 0:01:06]} Kg7 {[%emt 0:06:13]} 26. Rg3 {[%emt 0:02:23]} h5 {[%emt 0:00:10]} 27. gxh6+ {[%emt 0:01:01]} Nxh6 {[%emt 0:00:10]} 28. Rg5 {[%emt 0:00:17]} Ra8 {[%emt 0:03:39]} 29. Rb5 {[%emt 0:01:27]} b6 {[%emt 0:00:13]} 30. Kf2 {[%emt 0:01:28]} Rh8 {[%emt 0:00:20]} 31. Kf3 {[%emt 0:02:01]} Ng8 {[%emt 0:01:43] Die Stellung ist ausgeglichen.} 32. f5 {[%emt 0:03:42]} gxf5 {[%emt 0:00:20]} 33. exf5 {[%emt 0:00:44]} d5 {[%emt 0:00:09]} 34. fxe6 {[%emt 0:03:12]} fxe6 {[%emt 0:00:09]} 35. Rd4 {[%emt 0:00:50]} Ne7 {[%emt 0:05:28]} 36. c4 {[%emt 0:01:41]} dxc4 {[%emt 0:00:19]} 37. Bxc4 {[%emt 0:01:07]} Rf8+ {[%emt 0:00:14]} 38. Ke2 {[%emt 0:00:32]} Rf5 {[%emt 0:00:38] Gewichteter Fehlerwert: Weiß=0.15 (sehr präzise) /Schwarz=0.15 (sehr präzise) .  Fehler:       	Weiß=2     	Schwarz=1     Ungenau:       	Weiß=4     	Schwarz=2     OK:         	Weiß=8     	Schwarz=12    Bester:       	Weiß=1     	---        Stark:        	Weiß=1     	---} 1/2-1/2

[Event "WSTCC-65 2024"]
[Site "Krakow"]
[Date "2024.07.03"]
[Round "2.14"]
[White "Reem, Meir"]
[Black "Dovzhenko, Viktor"]
[Result "0-1"]
[ECO "A41"]
[WhiteElo "1866"]
[BlackElo "2044"]
[Annotator "NA RC"]
[PlyCount "38"]
[EventDate "2024.07.01"]
[EventType "team-tourn"]
[EventCountry "POL"]
[SourceTitle "playchess.com"]
[Source "ChessBase"]
[SourceQuality "1"]
[TimeControl "40/5400+30:1800+30"]

1. d4 {[%emt 0:00:32]} d6 {[%emt 0:10:08]} 2. Nf3 {[%emt 0:01:01]} Bg4 {[%emt 0:01:30]} 3. Bf4 {[%emt 0:01:12]} Nf6 {[%emt 0:01:06]} 4. Nc3 {[%emt 0:01:11]} Nbd7 {[%emt 0:01:20]} 5. Qd2 {[%emt 0:04:25]} c6 {[%emt 0:02:16]} 6. e4 {[%emt 0:04:53]} Bxf3 {[%emt 0:02:55]} 7. gxf3 {[%emt 0:00:09]} e5 {[%emt 0:00:14]} 8. Be3 {[%emt 0:01:46]} exd4 {[%emt 0:15:00]} 9. Bxd4 {[%emt 0:01:13]} b5 {[%emt 0:01:28]} 10. Be3 {[%emt 0:11:22]} b4 {[%emt 0:08:11]} 11. Nd1 {[%emt 0:01:01]} d5 {[%emt 0:02:20]} 12. Bg5 {[%emt 0:01:56]} dxe4 {[%emt 0:04:19]} 13. Qe3 {[%emt 0:10:39]} Bc5 {[%emt 0:10:38]} 14. Bxf6 {[%emt 0:02:49]} Qxf6 {[%emt 0:00:18]} 15. Qxe4+ {[%emt 0:00:29]} Kf8 {[%emt 0:00:14]} 16. Kd2 {[%emt 0:12:53]} Re8 {[%emt 0:03:35]} 17. Qg4 {[%emt 0:06:53]} Ne5 {[%emt 0:03:16]} 18. Qh5 {[%emt 0:02:18]} Nxf3+ {[%emt 0:00:32]} 19. Kc1 {[%emt 0:00:07]} Qf4+ {[%emt 0:00:46]} 0-1

[Event "WSTCC-65 2024"]
[Site "Krakow"]
[Date "2024.07.03"]
[Round "2.15"]
[White "Lanc, Alois"]
[Black "Van Herck, Marcel"]
[Result "1/2-1/2"]
[ECO "B12"]
[WhiteElo "2256"]
[BlackElo "1942"]
[Annotator "TA"]
[PlyCount "72"]
[EventDate "2024.07.01"]
[EventType "team-tourn"]
[EventCountry "POL"]
[SourceTitle "playchess.com"]
[Source "ChessBase"]
[SourceQuality "1"]
[TimeControl "40/5400+30:1800+30"]

{[%evp 9,72,0,7,0,0,-29,0,0,37,27,43,42,54,49,62,66,51,54,93,76,114,91,63,48,127,116,129,109,109,116,118,93,95,15,18,9,7,15,10,0,14,-21,0,0,6,7,23,12,40,36,31,0,35,0,30,8,8,0,0,0,8,0,0,0,4]} 1. e4 {[%emt 0:00:07]} c6 {[%emt 0:00:29]} 2. d4 {[%emt 0:00:48]} d5 {[%emt 0:00:13]} 3. e5 {[%emt 0:01:28]} c5 {[%emt 0:00:30]} 4. dxc5 {[%emt 0:01:53]} e6 {[%emt 0:00:09]} 5. a3 {[%emt 0:04:30]} Bxc5 {[%emt 0:01:17]} 6. Qg4 {[%emt 0:03:37]} Ne7 {[%emt 0:02:51]} 7. b4 {[%emt 0:00:52]} Bb6 {[%emt 0:00:21] And now ...Qc7 would win.} 8. Nf3 {[%emt 0:01:45]} Kf8 {[%emt 0:21:57]} 9. Bd3 {[%emt 0:06:33]} Nd7 {[%emt 0:03:32]} 10. O-O {[%emt 0:03:21]} a5 {[%emt 0:08:45]} 11. Bb2 $36 {[%emt 0:08:59][%cal Bc1b2,Bb2a1,Ba1c3,Bc3d4][%mdl 2080] Black is under pressure.} axb4 {[%emt 0:00:11]} 12. axb4 {[%emt 0:00:20]} Rxa1 {[%emt 0:00:04]} 13. Bxa1 {[%emt 0:00:07]} Nc6 {[%emt 0:05:52]} 14. Re1 {[%emt 0:10:57]} Qe7 {[%emt 0:00:26]} 15. Bc3 {[%emt 0:03:07]} d4 {[%emt 0:03:45]} 16. Nxd4 {[%emt 0:02:27]} ({Much worse is} 16. Bxd4 Bxd4 17. Nxd4 Ndxe5 18. Nxc6 Nxg4 $11) (16. Bb2 {is interesting.} h5 17. Qf4 Nxb4 18. Nxd4 Nd5 19. Qd2) 16... Ncxe5 {[%emt 0:00:54]} (16... Ndxe5 $14 17. Qg3 Nxd4 18. Qxe5 f6) 17. Qg3 {[%emt 0:06:35]} Nxd3 {[%emt 0:02:54]} 18. cxd3 {[%emt 0:00:16]} Bxd4 {[%emt 0:03:09]} 19. Bxd4 {[%emt 0:00:35]} f6 {[%emt 0:00:04][%cal Of8f7] Black is weak on the dark squares} 20. Qc7 {[%emt 0:05:58]} Kf7 {[%emt 0:00:08]} 21. Qc4 {[%emt 0:00:20] White has more active pieces.} ({White should try} 21. Nc3 $16) 21... Qd6 $11 {[%emt 0:02:51][%cal Ob7b5]} 22. Nc3 {[%emt 0:05:26][%cal Bb1c3,Bc3b5,Bb5a7][%mdl 32]} Nb6 {[%emt 0:00:52]} 23. Qc5 {[%emt 0:05:36]} Qxc5 {[%emt 0:00:18]} 24. bxc5 {[%emt 0:03:14]} Nd5 {[%emt 0:08:07]} 25. Nb5 {[%emt 0:09:14]} Ke7 {[%emt 0:06:36]} 26. Rb1 {[%emt 0:03:33]} Kd7 {[%emt 0:07:32]} 27. f3 {[%emt 0:02:28]} Kc6 {[%emt 0:06:08]} 28. Bf2 {[%emt 0:00:23]} Rd8 {[%emt 0:04:31]} 29. Na7+ {[%emt 0:02:28]} Kc7 {[%emt 0:00:12]} 30. Nb5+ {[%emt 0:01:26]} Kc6 {[%emt 0:00:04]} 31. Na7+ {[%emt 0:00:26]} Kc7 {[%emt 0:00:06]} 32. Bg3+ {[%emt 0:02:26]} e5 {[%emt 0:00:06] The position is equal.} 33. Nb5+ {[%emt 0:01:10]} Kc6 {[%emt 0:00:11]} 34. Na7+ {[%emt 0:01:39]} Kc7 {[%emt 0:00:16]} 35. Nb5+ {[%emt 0:01:56]} Kc6 {[%emt 0:00:05]} 36. Na7+ {[%emt 0:01:18]} Kc7 {Weighted Error Value: White=0.14 (very precise) /Black=0.12 (very precise) .  Mistake:       	White=1     	Black=1      Inaccurate:     	White=2     	Black=5      OK:         	White=7     	Black=9      Best:        	White=1     	Black=7} 1/2-1/2

[Event "WSTCC-65 2024"]
[Site "Krakow"]
[Date "2024.07.03"]
[Round "2.15"]
[White "Joentausta, Hannu"]
[Black "Hewson, Brian W R"]
[Result "1/2-1/2"]
[ECO "B10"]
[WhiteElo "2102"]
[BlackElo "2042"]
[Annotator "NA RC"]
[PlyCount "53"]
[EventDate "2024.07.01"]
[EventType "team-tourn"]
[EventCountry "POL"]
[SourceTitle "playchess.com"]
[Source "ChessBase"]
[SourceQuality "1"]
[TimeControl "40/5400+30:1800+30"]

1. e4 {[%emt 0:00:04]} c6 {[%emt 0:00:09]} 2. d3 {[%emt 0:00:12]} d5 {[%emt 0:00:14]} 3. Nd2 {[%emt 0:00:12]} e5 {[%emt 0:00:20]} 4. Ngf3 {[%emt 0:00:30]} Bd6 {[%emt 0:00:09]} 5. g3 {[%emt 0:00:20]} Nf6 {[%emt 0:00:27]} 6. Bg2 {[%emt 0:00:10]} O-O {[%emt 0:01:23]} 7. O-O {[%emt 0:00:32]} Nbd7 {[%emt 0:04:27]} 8. Re1 {[%emt 0:02:59]} Re8 {[%emt 0:00:07]} 9. Nf1 {[%emt 0:02:45]} dxe4 {[%emt 0:03:36]} 10. dxe4 {[%emt 0:00:36]} Nf8 {[%emt 0:08:14]} 11. Nh4 {[%emt 0:05:37]} Bb4 {[%emt 0:08:34]} 12. c3 {[%emt 0:06:50]} Qxd1 {[%emt 0:02:24]} 13. Rxd1 {[%emt 0:00:03]} Bg4 {[%emt 0:00:35]} 14. f3 {[%emt 0:08:10]} Bc5+ {[%emt 0:00:06]} 15. Be3 {[%emt 0:00:07]} Bxe3+ {[%emt 0:02:14]} 16. Nxe3 {[%emt 0:00:03]} Be6 {[%emt 0:00:46]} 17. Bf1 {[%emt 0:06:57]} g6 {[%emt 0:10:20]} 18. Kf2 {[%emt 0:08:19]} N8d7 {[%emt 0:05:21]} 19. Nc4 {[%emt 0:01:35]} Bxc4 {[%emt 0:00:15]} 20. Bxc4 {[%emt 0:00:01]} Nb6 {[%emt 0:00:16]} 21. Bb3 {[%emt 0:04:43]} Rad8 {[%emt 0:02:29]} 22. Ng2 {[%emt 0:01:01]} Kf8 {[%emt 0:04:42]} 23. Ne3 {[%emt 0:00:19]} Rxd1 {[%emt 0:03:48]} 24. Rxd1 {[%emt 0:00:10]} Re7 {[%emt 0:00:07]} 25. Rd6 {[%emt 0:07:51]} Kg7 {[%emt 0:08:55]} 26. Ke2 {[%emt 0:03:06]} Rd7 {[%emt 0:00:19]} 27. Rxd7 {[%emt 0:05:15]} 1/2-1/2

[Event "WSTCC-65 2024"]
[Site "Krakow"]
[Date "2024.07.03"]
[Round "2.15"]
[White "Karnaukh, Anatolij"]
[Black "Gorjaltsan, Eduard"]
[Result "1/2-1/2"]
[ECO "D02"]
[WhiteElo "1970"]
[BlackElo "1884"]
[Annotator "NA RC"]
[PlyCount "69"]
[EventDate "2024.07.01"]
[EventType "team-tourn"]
[EventCountry "POL"]
[SourceTitle "playchess.com"]
[Source "ChessBase"]
[SourceQuality "1"]
[TimeControl "40/5400+30:1800+30"]

1. d4 {[%emt 0:00:13]} d5 {[%emt 0:00:11]} 2. Nf3 {[%emt 0:00:07]} Nf6 {[%emt 0:00:18]} 3. Bf4 {[%emt 0:00:23]} e6 {[%emt 0:00:24]} 4. e3 {[%emt 0:00:11]} Bd6 {[%emt 0:00:15]} 5. Bd3 {[%emt 0:00:32]} b6 {[%emt 0:00:31]} 6. c3 {[%emt 0:00:23]} O-O {[%emt 0:00:26]} 7. Nbd2 {[%emt 0:00:19]} Bb7 {[%emt 0:00:22]} 8. Ne5 {[%emt 0:00:25]} c5 {[%emt 0:02:42]} 9. O-O {[%emt 0:00:51]} Nc6 {[%emt 0:00:50]} 10. Qe2 {[%emt 0:02:16]} Qc7 {[%emt 0:00:30]} 11. Ndf3 {[%emt 0:03:44]} Ne4 {[%emt 0:01:25]} 12. Nxc6 {[%emt 0:02:02]} Bxc6 {[%emt 0:03:13]} 13. Bxd6 {[%emt 0:04:23]} Qxd6 {[%emt 0:01:34]} 14. a4 {[%emt 0:02:23]} a5 {[%emt 0:02:10]} 15. Ne5 {[%emt 0:01:09]} Bb7 {[%emt 0:00:06]} 16. f3 {[%emt 0:03:41]} f6 {[%emt 0:04:20]} 17. Ng4 {[%emt 0:09:40]} Ng5 {[%emt 0:02:01]} 18. Qc2 {[%emt 0:03:17]} f5 {[%emt 0:06:50]} 19. Ne5 {[%emt 0:02:50]} Rac8 {[%emt 0:02:28]} 20. Qd2 {[%emt 0:02:03]} Rf6 {[%emt 0:05:44]} 21. f4 {[%emt 0:08:09]} Ne4 {[%emt 0:01:03]} 22. Qe2 {[%emt 0:01:02]} cxd4 {[%emt 0:03:07]} 23. exd4 {[%emt 0:03:05]} Rcf8 {[%emt 0:08:23]} 24. Rf3 {[%emt 0:02:33]} Rh6 {[%emt 0:04:37]} 25. Qe3 {[%emt 0:01:46]} Qe7 {[%emt 0:03:00]} 26. Bb5 {[%emt 0:11:08]} Qd6 {[%emt 0:01:55]} 27. Rd1 {[%emt 0:00:23]} Nf6 {[%emt 0:00:48]} 28. Rg3 {[%emt 0:02:20]} Ne4 {[%emt 0:00:36]} 29. Rh3 {[%emt 0:00:26]} Rff6 {[%emt 0:00:34]} 30. Rxh6 {[%emt 0:00:30]} Rxh6 {[%emt 0:00:02]} 31. Rf1 {[%emt 0:02:58]} Nf6 32. h3 Bc8 33. Rf2 Nd7 34. g4 Rh5 35. g5 1/2-1/2

[Event "WSTCC-65 2024"]
[Site "Krakow"]
[Date "2024.07.03"]
[Round "2.16"]
[White "Aragones-Melhem, Georgy"]
[Black "Petran, Peter"]
[Result "1/2-1/2"]
[ECO "B16"]
[WhiteElo "2079"]
[BlackElo "2195"]
[Annotator "RC"]
[PlyCount "45"]
[EventDate "2024.07.01"]
[EventType "team-tourn"]
[EventCountry "POL"]
[SourceTitle "playchess.com"]
[Source "ChessBase"]
[SourceQuality "1"]
[TimeControl "40/5400+30:1800+30"]

1. e4 {[%emt 0:00:12]} c6 {[%emt 0:01:57]} 2. d4 {[%emt 0:00:22]} d5 {[%emt 0:00:06]} 3. Nc3 {[%emt 0:00:37]} dxe4 {[%emt 0:00:10]} 4. Nxe4 {[%emt 0:00:23]} Nf6 {[%emt 0:00:05]} 5. Nxf6+ {[%emt 0:00:55]} gxf6 {[%emt 0:00:06]} 6. Bc4 {[%emt 0:01:26]} Bf5 {[%emt 0:01:20]} 7. Ne2 {[%emt 0:00:41]} Nd7 {[%emt 0:03:07]} 8. Ng3 {[%emt 0:00:31]} Bg6 {[%emt 0:00:45]} 9. h4 {[%emt 0:00:23]} h5 {[%emt 0:00:10]} 10. c3 {[%emt 0:07:52]} Qa5 {[%emt 0:03:16]} 11. a4 {[%emt 0:06:15]} e5 {[%emt 0:01:01]} 12. Qe2 {[%emt 0:00:11]} O-O-O {[%emt 0:04:24]} 13. O-O {[%emt 0:03:03]} exd4 {[%emt 0:04:42]} 14. b4 {[%emt 0:03:57]} Qc7 {[%emt 0:03:02]} 15. cxd4 {[%emt 0:07:53]} Bxb4 {[%emt 0:04:25]} 16. a5 {[%emt 0:00:47]} Bc3 {[%emt 0:10:54]} 17. Be3 {[%emt 0:01:21]} Bxa1 {[%emt 0:09:39]} 18. Rxa1 {[%emt 0:00:17]} Rhe8 {[%emt 0:00:08]} 19. Qf3 {[%emt 0:01:49]} Rxe3 {[%emt 0:13:42]} 20. fxe3 {[%emt 0:01:44]} Re8 {[%emt 0:04:05]} 21. Qf4 {[%emt 0:01:30]} Qxf4 {[%emt 0:05:19]} 22. exf4 {[%emt 0:00:10]} f5 {[%emt 0:00:02]} 23. d5 {[%emt 0:20:40]} 1/2-1/2

[Event "WSTCC-65 2024"]
[Site "Krakow"]
[Date "2024.07.03"]
[Round "2.16"]
[White "Tsifanskaya, Ludmila A"]
[Black "Malienko, Alexander"]
[Result "1/2-1/2"]
[ECO "A04"]
[WhiteElo "1970"]
[BlackElo "1904"]
[Annotator "NA RC"]
[PlyCount "34"]
[EventDate "2024.07.01"]
[EventType "team-tourn"]
[EventCountry "POL"]
[SourceTitle "playchess.com"]
[Source "ChessBase"]
[SourceQuality "1"]
[TimeControl "40/5400+30:1800+30"]

1. Nf3 {[%emt 0:01:09]} c5 {[%emt 0:00:31]} 2. g3 {[%emt 0:00:18]} Nf6 {[%emt 0:00:30]} 3. Bg2 {[%emt 0:00:03]} Nc6 {[%emt 0:00:26]} 4. O-O {[%emt 0:00:33]} d5 {[%emt 0:00:34]} 5. d4 {[%emt 0:00:59]} e6 {[%emt 0:03:13]} 6. c4 {[%emt 0:00:19]} dxc4 {[%emt 0:04:50]} 7. Qa4 {[%emt 0:01:23]} Bd7 {[%emt 0:14:39]} 8. Qxc4 {[%emt 0:00:55]} cxd4 {[%emt 0:00:32]} 9. Nxd4 {[%emt 0:01:23]} Rc8 {[%emt 0:01:54]} 10. Nxc6 {[%emt 0:00:56]} Bxc6 {[%emt 0:00:10]} 11. Bxc6+ {[%emt 0:00:16]} Rxc6 {[%emt 0:00:10]} 12. Qa4 {[%emt 0:01:05]} Bc5 {[%emt 0:02:30]} 13. Nc3 {[%emt 0:00:53]} O-O {[%emt 0:01:11]} 14. Bg5 {[%emt 0:03:24]} h6 {[%emt 0:00:37]} 15. Bxf6 {[%emt 0:01:54]} Qxf6 {[%emt 0:00:29]} 16. Ne4 {[%emt 0:04:23]} Qd4 {[%emt 0:05:54]} 17. Nxc5 {[%emt 0:00:17]} Qxc5 {[%emt 0:00:07]} 1/2-1/2

[Event "WSTCC-65 2024"]
[Site "Krakow"]
[Date "2024.07.03"]
[Round "2.17"]
[White "Sosnowska, Elzbieta"]
[Black "White, Alastair F"]
[Result "1-0"]
[ECO "B23"]
[WhiteElo "1810"]
[BlackElo "2022"]
[Annotator "NA RC"]
[PlyCount "43"]
[EventDate "2024.07.01"]
[EventType "team-tourn"]
[EventCountry "POL"]
[SourceTitle "playchess.com"]
[Source "ChessBase"]
[SourceQuality "1"]
[TimeControl "40/5400+30:1800+30"]

1. e4 {[%emt 0:00:01]} c5 {[%emt 0:00:39]} 2. Nc3 {[%emt 0:00:29]} g6 {[%emt 0:01:20]} 3. f4 {[%emt 0:00:22]} Nc6 {[%emt 0:01:19]} 4. Nf3 {[%emt 0:00:15]} d6 {[%emt 0:01:21]} 5. Bc4 {[%emt 0:01:35]} Bg7 {[%emt 0:01:51]} 6. O-O {[%emt 0:02:12]} Nd4 {[%emt 0:02:17]} 7. f5 {[%emt 0:06:16]} gxf5 {[%emt 0:08:21]} 8. Ng5 {[%emt 0:05:33]} e6 {[%emt 0:06:33]} 9. Qh5 {[%emt 0:14:47]} Qe7 {[%emt 0:08:28]} 10. exf5 {[%emt 0:13:24]} Nf6 {[%emt 0:00:52]} 11. Qh4 {[%emt 0:02:21]} d5 {[%emt 0:13:37]} 12. Bb5+ {[%emt 0:08:54]} Nxb5 {[%emt 0:06:26]} 13. Nxb5 {[%emt 0:00:11]} a6 {[%emt 0:07:36]} 14. Nc3 {[%emt 0:03:29]} d4 {[%emt 0:04:22]} 15. fxe6 {[%emt 0:12:51]} fxe6 {[%emt 0:02:50]} 16. Nce4 {[%emt 0:01:27]} O-O {[%emt 0:06:28]} 17. d3 {[%emt 0:02:40]} Bd7 {[%emt 0:04:32]} 18. Nxh7 {[%emt 0:03:00]} Nd5 {[%emt 0:09:33]} 19. Bg5 {[%emt 0:00:47]} Rxf1+ {[%emt 0:00:58]} 20. Rxf1 {[%emt 0:00:12]} Qe8 {[%emt 0:00:28]} 21. Nhf6+ {[%emt 0:01:49]} Bxf6 {[%emt 0:01:03]} 22. Bxf6 {[%emt 0:04:54]} 1-0

[Event "WSTCC-65 2024"]
[Site "Krakow"]
[Date "2024.07.03"]
[Round "2.17"]
[White "Kennedy, Shernaz"]
[Black "Beilfuss, Wilfried"]
[Result "0-1"]
[ECO "E00"]
[WhiteElo "1784"]
[BlackElo "2059"]
[Annotator "NA RC"]
[PlyCount "82"]
[EventDate "2024.07.01"]
[EventType "team-tourn"]
[EventCountry "POL"]
[SourceTitle "playchess.com"]
[Source "ChessBase"]
[SourceQuality "1"]
[TimeControl "40/5400+30:1800+30"]

1. d4 {[%emt 0:00:03]} Nf6 {[%emt 0:00:28]} 2. c4 {[%emt 0:00:04]} e6 {[%emt 0:00:16]} 3. a3 {[%emt 0:00:13]} d5 {[%emt 0:02:29]} 4. e3 {[%emt 0:00:50]} Be7 {[%emt 0:01:34]} 5. Nf3 {[%emt 0:01:38]} O-O {[%emt 0:01:01]} 6. Nbd2 {[%emt 0:02:41]} b6 {[%emt 0:10:04]} 7. cxd5 {[%emt 0:00:46]} exd5 {[%emt 0:00:26]} 8. b4 {[%emt 0:01:05]} c6 {[%emt 0:06:28]} 9. Ne5 {[%emt 0:01:28]} a5 {[%emt 0:01:33]} 10. Qc2 {[%emt 0:03:36]} axb4 {[%emt 0:02:00]} 11. Nxc6 {[%emt 0:00:25]} Nxc6 {[%emt 0:00:37]} 12. Qxc6 {[%emt 0:00:21]} Bd7 {[%emt 0:00:59]} 13. Qc2 {[%emt 0:00:30]} bxa3 {[%emt 0:04:12]} 14. Bd3 {[%emt 0:01:30]} b5 {[%emt 0:02:27]} 15. e4 {[%emt 0:03:12]} dxe4 {[%emt 0:03:47]} 16. Nxe4 {[%emt 0:00:39]} b4 {[%emt 0:06:37]} 17. Nxf6+ {[%emt 0:02:49]} Bxf6 {[%emt 0:00:06]} 18. Bxh7+ {[%emt 0:00:28]} Kh8 {[%emt 0:00:07]} 19. Be3 {[%emt 0:01:46]} Rc8 {[%emt 0:06:43]} 20. Qb1 {[%emt 0:04:13]} g6 {[%emt 0:08:59]} 21. Bxg6 fxg6 22. Qxg6 {[%emt 0:05:19]} Qe7 {[%emt 0:03:27]} 23. O-O {[%emt 0:01:58]} Qh7 {[%emt 0:05:01]} 24. Qg3 {[%emt 0:01:34]} Bc6 {[%emt 0:04:08]} 25. Qd6 {[%emt 0:01:13]} Qe4 {[%emt 0:08:14]} 26. Qg3 {[%emt 0:04:51]} Rg8 {[%emt 0:02:50]} 27. Qh3+ {[%emt 0:00:40]} Qh7 {[%emt 0:04:53]} 28. Qxh7+ Kxh7 29. f3 {[%emt 0:01:54]} Bd5 {[%emt 0:01:15]} 30. Rf2 {[%emt 0:01:20]} Rc3 {[%emt 0:01:47]} 31. Bd2 {[%emt 0:07:02]} Rb3 {[%emt 0:01:09]} 32. Kf1 {[%emt 0:00:33]} Bxd4 {[%emt 0:00:34]} 33. Rc1 {[%emt 0:03:18]} Bxf2 {[%emt 0:00:29]} 34. Kxf2 {[%emt 0:01:52]} Rb2 {[%emt 0:01:27]} 35. Ke3 {[%emt 0:00:58]} Rxg2 {[%emt 0:00:43]} 36. Rc7+ {[%emt 0:01:44]} Rg7 {[%emt 0:01:43]} 37. Rc5 {[%emt 0:00:34]} a2 {[%emt 0:01:27]} 38. Ra5 {[%emt 0:00:39]} Rb1 {[%emt 0:01:47]} 39. Rxd5 {[%emt 0:04:16]} a1=Q {[%emt 0:00:13]} 40. f4 {[%emt 0:01:36]} Rb3+ {[%emt 0:00:26]} 41. Kf2 {[%emt 0:31:31]} Qg1+ {[%emt 0:30:18]} 0-1

[Event "WSTCC-65 2024"]
[Site "Krakow"]
[Date "2024.07.03"]
[Round "2.18"]
[White "Becker, Norbert"]
[Black "O`Neill, Julie Anne"]
[Result "1-0"]
[ECO "B10"]
[WhiteElo "2047"]
[BlackElo "1806"]
[Annotator "NA RC"]
[PlyCount "43"]
[EventDate "2024.07.01"]
[EventType "team-tourn"]
[EventCountry "POL"]
[SourceTitle "playchess.com"]
[Source "ChessBase"]
[SourceQuality "1"]
[TimeControl "40/5400+30:1800+30"]

1. e4 {[%emt 0:00:08]} c6 {[%emt 0:00:17]} 2. Nc3 {[%emt 0:00:33]} d5 {[%emt 0:00:13]} 3. Nf3 {[%emt 0:00:17]} d4 {[%emt 0:02:30]} 4. Ne2 {[%emt 0:00:52]} c5 {[%emt 0:02:58]} 5. Ng3 {[%emt 0:01:18]} Nc6 {[%emt 0:01:38]} 6. Bb5 {[%emt 0:03:46]} Bg4 {[%emt 0:01:50]} 7. h3 {[%emt 0:02:03]} Bxf3 {[%emt 0:01:07]} 8. Qxf3 {[%emt 0:00:12]} Qb6 {[%emt 0:02:09]} 9. a4 {[%emt 0:09:35]} a6 {[%emt 0:04:15]} 10. Bxc6+ {[%emt 0:09:26]} Qxc6 {[%emt 0:00:34]} 11. O-O {[%emt 0:01:04]} Nf6 12. d3 {[%emt 0:01:59]} h6 {[%emt 0:04:25]} 13. Qe2 {[%emt 0:01:58]} e5 {[%emt 0:04:52]} 14. f4 {[%emt 0:03:44]} Bd6 {[%emt 0:03:10]} 15. Nf5 {[%emt 0:11:40]} g6 {[%emt 0:06:13]} 16. Nxh6 Nh5 {[%emt 0:03:31]} 17. fxe5 {[%emt 0:08:17]} Rxh6 {[%emt 0:07:44]} 18. Bxh6 {[%emt 0:02:02]} Bxe5 {[%emt 0:00:42]} 19. Qg4 {[%emt 0:08:58]} Qc7 {[%emt 0:01:56]} 20. Rf3 {[%emt 0:02:15]} Nf6 21. Qh4 Nh5 {[%emt 0:21:47]} 22. Kf2 {[%emt 0:06:30]} 1-0